fUSD/lending_fUSD_20250530
["ID","MTS","AMOUNT","RATE_DAILY","PERIOD"]
[363080814,1748571038261,-1000.0,0.00021904,2]
[363080816,1748571038270,-1000.0,0.00021904,2]
[363080818,1748571038279,-1000.0,0.00021904,2]
[363080820,1748571038288,-1000.0,0.00021904,2]
[363080822,1748571038301,-1000.0,0.00021904,2]
[363080824,1748571038311,-1000.0,0.00021904,2]
[363080826,1748571038320,-1000.0,0.00021904,2]
[363080828,1748571038330,-1000.0,0.00021904,2]
[363080830,1748571038339,-1000.0,0.00021904,2]
[363080832,1748571038349,-1000.0,0.00021904,2]
[363080834,1748571038358,-1000.0,0.00021904,2]
[363080836,1748571038368,-1000.0,0.00021904,2]
[363080838,1748571038379,-1000.0,0.00021904,2]
[363080840,1748571038388,-1000.0,0.00021904,2]
[363080842,1748571038398,-1000.0,0.00021904,2]
[363080844,1748571038407,-1000.0,0.00021904,2]
[363080846,1748571038417,-1000.0,0.00021904,2]
[363080848,1748571038426,-1000.0,0.00021904,2]
[363080850,1748571038436,-1000.0,0.00021904,2]
[363080852,1748571038445,-1000.0,0.00021904,2]
[363080854,1748571038455,-1000.0,0.00021904,2]
[363080856,1748571038464,-1000.0,0.00021904,2]
[363080858,1748571038473,-1000.0,0.00021904,2]
[363080860,1748571038483,-1000.0,0.00021904,2]
[363080862,1748571038492,-1000.0,0.00021904,2]
[363080864,1748571038502,-1000.0,0.00021904,2]
[363080866,1748571038511,-1000.0,0.00021904,2]
[363080868,1748571038521,-211.0,0.00021904,2]
[363080869,1748571038530,-161.0,0.00021911,3]
[363080871,1748571038539,-161.0,0.00021912,3]
[363080873,1748571038549,-161.0,0.00021913,3]
[363080874,1748571038558,-161.0,0.00021914,3]
[363080876,1748571038568,-161.0,0.00021915,3]
[363080877,1748571038577,-340.49145875,0.00021916,2]
[363080879,1748571038586,-161.0,0.00021916,3]
[363080881,1748571038595,-1005.24002326,0.00021916,5]
[363080883,1748571038604,-1005.24002326,0.00021916,5]
[363080884,1748571038614,-1005.24002326,0.00021916,5]
[363080886,1748571038623,-1005.24002323,0.00021916,5]
[363080888,1748571038632,-1005.24002326,0.00021916,5]
[363080889,1748571038641,-1005.24002326,0.00021916,5]
[363080891,1748571038651,-1005.24002326,0.00021916,5]
[363080893,1748571038660,-1000.0,0.00021916,2]
[363080894,1748571038670,-581.0,0.00021917,2]
[363080896,1748571038678,-1000.0,0.00021917,2]
[363080898,1748571038687,-1000.0,0.00021917,2]
[363080899,1748571038697,-1000.0,0.00021917,2]
[363080901,1748571038706,-1000.0,0.00021917,2]
[363080903,1748571038715,-1000.0,0.00021917,2]
[363080905,1748571038725,-1000.0,0.00021917,2]
[363080906,1748571038734,-1000.0,0.00021917,2]
[363080908,1748571038744,-1000.0,0.00021917,2]
[363080910,1748571038753,-1000.0,0.00021917,2]
[363080912,1748571038763,-1000.0,0.00021917,2]
[363080913,1748571038773,-1000.0,0.00021917,2]
[363080915,1748571038782,-1000.0,0.00021917,2]
[363080917,1748571038791,-1000.0,0.00021917,2]
[363080919,1748571038800,-1000.0,0.00021917,2]
[363080921,1748571038810,-1000.0,0.00021917,2]
[363080922,1748571038819,-1000.0,0.00021917,2]
[363080924,1748571038828,-1000.0,0.00021917,2]
[363080926,1748571038837,-1000.0,0.00021917,2]
[363080927,1748571038847,-1000.0,0.00021917,2]
[363080929,1748571038856,-1000.0,0.00021917,2]
[363080931,1748571038865,-1000.0,0.00021917,2]
[363080932,1748571038874,-1000.0,0.00021917,2]
[363080957,1748571039161,-1000.0,0.00021917,2]
[363080959,1748571039172,-1000.0,0.00021917,2]
[363080961,1748571039182,-1000.0,0.00021917,2]
[363080963,1748571039191,-1000.0,0.00021917,2]
[363080965,1748571039201,-1000.0,0.00021917,2]
[363080966,1748571039210,-941.0,0.00021917,2]
[363080968,1748571039220,-9431.5,0.00021917,2]
[363080970,1748571039230,-423.0285396,0.00021917,2]
[363080972,1748571039239,-423.17149228,0.00021917,2]
[363080974,1748571039249,-157.651899,0.00021917,2]
[363080976,1748571039258,-162.986545,0.00021917,2]
[363080977,1748571039267,-420.0,0.00021917,2]
[363080979,1748571039277,-421.67878633,0.00021917,2]
[363080981,1748571039286,-422.04183839,0.00021917,2]
[363080982,1748571039296,-561.0,0.00021917,2]
[363080984,1748571039310,-699.58,0.00021917,2]
[363080986,1748571039319,-420.0,0.00021917,2]
[363080988,1748571039331,-634.88,0.00021917,2]
[363080990,1748571039340,-943.18,0.00021917,2]
[363080991,1748571039350,-420.0,0.00021917,2]
[363080993,1748571039360,-420.0,0.00021917,2]
[363080995,1748571039370,-420.0,0.00021917,2]
[363080997,1748571039380,-505.89,0.00021917,2]
[363080999,1748571039390,-420.0,0.00021917,2]
[363081000,1748571039399,-420.0,0.00021917,2]
[363081002,1748571039409,-434.61,0.00021917,2]
[363081003,1748571039418,-420.0,0.00021917,2]
[363081004,1748571039427,-420.0,0.00021917,2]
[363081005,1748571039436,-420.0,0.00021917,2]
[363081006,1748571039446,-499.97,0.00021917,2]
[363081008,1748571039455,-420.0,0.00021917,2]
[363081009,1748571039466,-420.0,0.00021917,2]
[363081010,1748571039475,-426.64608218,0.00021917,2]
[363081011,1748571039484,-420.0,0.00021917,2]
[363081012,1748571039494,-420.0,0.00021917,2]
[363081013,1748571039505,-420.0,0.00021917,2]
[363081014,1748571039515,-420.0,0.00021917,2]
[363081015,1748571039525,-479.99,0.00021917,2]
[363081016,1748571039535,-458.87,0.00021917,2]
[363081017,1748571039544,-420.0,0.00021917,2]
[363081018,1748571039554,-420.0,0.00021917,2]
[363081019,1748571039564,-420.0,0.00021917,2]
[363081020,1748571039574,-420.0,0.00021917,2]
[363081021,1748571039584,-504.28041384,0.00021917,2]
[363081022,1748571039594,-420.0,0.00021917,2]
[363081023,1748571039604,-505.67269936,0.00021917,2]
[363081024,1748571039614,-445.36,0.00021917,2]
[363081025,1748571039623,-420.0,0.00021917,2]
[363081026,1748571039632,-420.0,0.00021917,2]
[363081027,1748571039641,-420.0,0.00021917,2]
[363081028,1748571039650,-500.0,0.00021917,2]
[363081029,1748571039660,-419.78967922,0.00021917,2]
[363081030,1748571039669,-500.0,0.00021917,2]
[363081031,1748571039678,-503.70785387,0.00021917,2]
[363081032,1748571039688,-568.08,0.00021917,2]
[363081033,1748571039698,-420.0,0.00021917,2]
[363081034,1748571039707,-1098.21,0.00021917,2]
[363081035,1748571039717,-420.0,0.00021917,2]
[363081036,1748571039726,-420.0,0.00021917,2]
[363081037,1748571039735,-420.0,0.00021917,2]
[363081038,1748571039745,-420.0,0.00021917,2]
[363081039,1748571039755,-420.0,0.00021917,2]
[363081040,1748571039764,-420.0,0.00021917,2]
[363081041,1748571039774,-184.73561158,0.00021917,2]
[363081042,1748571039783,-420.0,0.00021917,2]
[363081043,1748571039793,-420.0,0.00021917,2]
[363081044,1748571039802,-448.8,0.00021917,2]
[363081045,1748571039812,-482.97,0.00021917,2]
[363081046,1748571039821,-420.0,0.00021917,2]
[363081047,1748571039830,-508.43,0.00021917,2]
[363081048,1748571039839,-655.49,0.00021917,2]
[363081049,1748571039849,-600.99,0.00021917,2]
[363081050,1748571039858,-420.0,0.00021917,2]
[363081051,1748571039867,-1468.14,0.00021917,2]
[363081052,1748571039876,-420.0,0.00021917,2]
[363081053,1748571039885,-420.0,0.00021917,2]
[363081054,1748571039894,-642.19,0.00021917,2]
[363081055,1748571039903,-420.0,0.00021917,2]
[363081056,1748571039913,-427.14408923,0.00021917,2]
[363081057,1748571039923,-767.35,0.00021917,2]
[363081058,1748571039932,-420.0,0.00021917,2]
[363081059,1748571039941,-1299.92,0.00021917,2]
[363081060,1748571039951,-438.83991879,0.00021917,2]
[363081061,1748571039961,-885.82,0.00021917,2]
[363081062,1748571039971,-420.0,0.00021917,2]
[363081063,1748571039981,-420.0,0.00021917,2]
[363081064,1748571039990,-939.49,0.00021917,2]
[363081065,1748571040001,-1200.56,0.00021917,2]
[363081066,1748571040011,-420.0,0.00021917,2]
[363081067,1748571040021,-420.0,0.00021917,2]
[363081069,1748571040030,-362.2018248,0.00021917,2]
[363081071,1748571040039,-420.0,0.00021917,2]
[363081072,1748571040049,-606.85,0.00021917,2]
[363081073,1748571040058,-369.69628858,0.00021917,2]
[363081074,1748571040068,-420.0,0.00021917,2]
[363081075,1748571040077,-420.97080269,0.00021917,2]
[363081076,1748571040086,-445.77353404,0.00021917,2]
[363081077,1748571040095,-420.0,0.00021917,2]
[363081078,1748571040104,-420.0,0.00021917,2]
[363081079,1748571040114,-795.43,0.00021917,2]
[363081080,1748571040123,-420.0,0.00021917,2]
[363081081,1748571040132,-420.0,0.00021917,2]
[363081082,1748571040141,-405.40441032,0.00021917,2]
[363081083,1748571040151,-420.0,0.00021917,2]
[363081084,1748571040161,-420.0,0.00021917,2]
[363081085,1748571040171,-420.0,0.00021917,2]
[363081086,1748571040180,-478.66,0.00021917,2]
[363081087,1748571040190,-420.0,0.00021917,2]
[363081088,1748571040200,-757.14,0.00021917,2]
[363081089,1748571040210,-555.81399462,0.00021917,2]
[363081090,1748571040219,-2194.99,0.00021917,2]
[363081091,1748571040228,-495.58,0.00021917,2]
[363081092,1748571040237,-717.87,0.00021917,2]
[363081093,1748571040248,-1853.15,0.00021917,2]
[363081094,1748571040259,-420.0,0.00021917,2]
[363081095,1748571040270,-420.0,0.00021917,2]
[363081096,1748571040280,-420.0,0.00021917,2]
[363081097,1748571040290,-731.94,0.00021917,2]
[363081098,1748571040302,-545.19,0.00021917,2]
[363081099,1748571040312,-420.0,0.00021917,2]
[363081100,1748571040322,-526.55,0.00021917,2]
[363081101,1748571040332,-429.72712127,0.00021917,2]
[363081102,1748571040343,-420.0,0.00021917,2]
[363081103,1748571040352,-427.30095235,0.00021917,2]
[363081104,1748571040362,-512.06228778,0.00021917,2]
[363081105,1748571040371,-1629.9,0.00021917,2]
[363081106,1748571040381,-1119.62,0.00021917,2]
[363081107,1748571040391,-469.70962406,0.00021917,2]
[363081108,1748571040400,-420.0,0.00021917,2]
[363081109,1748571040409,-420.0,0.00021917,2]
[363081110,1748571040419,-420.0,0.00021917,2]
[363081111,1748571040428,-420.0,0.00021917,2]
[363081112,1748571040437,-425.01998878,0.00021917,2]
[363081113,1748571040447,-420.0,0.00021917,2]
[363081114,1748571040457,-424.58001365,0.00021917,2]
[363081116,1748571040467,-420.0,0.00021917,2]
[363081117,1748571040477,-423.62154757,0.00021917,2]
[363081118,1748571040487,-424.67569254,0.00021917,2]
[363081119,1748571040499,-588.87,0.00021917,2]
[363081120,1748571040508,-1123.95,0.00021917,2]
[363081121,1748571040518,-420.0,0.00021917,2]
[363081122,1748571040528,-439.72237111,0.00021917,2]
[363081123,1748571040538,-420.0,0.00021917,2]
[363081124,1748571040547,-455.71876711,0.00021917,2]
[363081126,1748571040557,-1581.1,0.00021917,2]
[363081128,1748571040566,-420.0,0.00021917,2]
[363081130,1748571040576,-1528.95,0.00021917,2]
[363081132,1748571040585,-493.02,0.00021917,2]
[363081134,1748571040595,-420.0,0.00021917,2]
[363081136,1748571040603,-504.40886248,0.00021917,2]
[363081138,1748571040613,-772.13,0.00021917,2]
[363081140,1748571040623,-423.72253512,0.00021917,2]
[363081142,1748571040633,-420.0,0.00021917,2]
[363081144,1748571040644,-1235.41,0.00021917,2]
[363081146,1748571040653,-420.0,0.00021917,2]
[363081148,1748571040664,-420.0,0.00021917,2]
[363081150,1748571040674,-433.89,0.00021917,2]
[363081152,1748571040684,-1399.7,0.00021917,2]
[363081154,1748571040693,-420.0,0.00021917,2]
[363081156,1748571040703,-780.07,0.00021917,2]
[363081158,1748571040713,-427.05866153,0.00021917,2]
[363081160,1748571040723,-431.43346377,0.00021917,2]
[363081162,1748571040732,-425.72976844,0.00021917,2]
[363081164,1748571040742,-420.0,0.00021917,2]
[363081166,1748571040757,-449.4,0.00021917,2]
[363081168,1748571040766,-882.86,0.00021917,2]
[363081170,1748571040776,-420.0,0.00021917,2]
[363081172,1748571040786,-420.0,0.00021917,2]
[363081175,1748571040796,-354.6904555,0.00021917,2]
[363081177,1748571040805,-195.00747072,0.00021917,2]
[363081178,1748571040816,-424.79070466,0.00021917,2]
[363081181,1748571040826,-422.28857548,0.00021917,2]
[363081182,1748571040836,-439.89,0.00021917,2]
[363081185,1748571040846,-436.53,0.00021917,2]
[363081187,1748571040855,-420.0,0.00021917,2]
[363081188,1748571040864,-420.0,0.00021917,2]
[363081190,1748571040874,-507.87,0.00021917,2]
[363081192,1748571040883,-1014.93,0.00021917,2]
[363081194,1748571040892,-420.0,0.00021917,2]
[363081196,1748571040901,-420.0,0.00021917,2]
[363081198,1748571040910,-1255.21,0.00021917,2]
[363081200,1748571040919,-425.75761905,0.00021917,2]
[363081202,1748571040928,-420.0,0.00021917,2]
[363081204,1748571040938,-491.23,0.00021917,2]
[363081206,1748571040947,-420.0,0.00021917,2]
[363081208,1748571040956,-446.56,0.00021917,2]
[363081209,1748571040966,-483.02,0.00021917,2]
[363081210,1748571040975,-420.0,0.00021917,2]
[363081211,1748571040984,-425.7660864,0.00021917,2]
[363081212,1748571040996,-420.0,0.00021917,2]
[363081213,1748571041006,-420.0,0.00021917,2]
[363081214,1748571041015,-426.02912825,0.00021917,2]
[363081215,1748571041025,-451.46,0.00021917,2]
[363081216,1748571041034,-1181.52,0.00021917,2]
[363081217,1748571041043,-527.64,0.00021917,2]
[363081218,1748571041053,-628.37,0.00021917,2]
[363081219,1748571041068,-776.83,0.00021917,2]
[363081220,1748571041084,-500.89,0.00021917,2]
[363081221,1748571041097,-420.0,0.00021917,2]
[363081222,1748571041109,-425.15974698,0.00021917,2]
[363081223,1748571041124,-425.17549052,0.00021917,2]
[363081224,1748571041138,-1289.17,0.00021917,2]
[363081225,1748571041153,-420.0,0.00021917,2]
[363081226,1748571041168,-420.0,0.00021917,2]
[363081227,1748571041181,-420.0,0.00021917,2]
[363081228,1748571041193,-551.35,0.00021917,2]
[363081229,1748571041208,-1304.2,0.00021917,2]
[363081230,1748571041223,-420.0,0.00021917,2]
[363081231,1748571041237,-420.0,0.00021917,2]
[363081232,1748571041252,-722.68,0.00021917,2]
[363081233,1748571041266,-426.10414336,0.00021917,2]
[363081234,1748571041282,-426.42902524,0.00021917,2]
[363081235,1748571041295,-420.0,0.00021917,2]
[363081236,1748571041311,-425.42456637,0.00021917,2]
[363081237,1748571041324,-1192.14,0.00021917,2]
[363081238,1748571041338,-556.2349246,0.00021917,2]
[363081239,1748571041353,-420.0,0.00021917,2]
[363081240,1748571041365,-420.0,0.00021917,2]
[363081241,1748571041378,-504.69,0.00021917,2]
[363081242,1748571041391,-424.75848875,0.00021917,2]
[363081243,1748571041404,-420.0,0.00021917,2]
[363081244,1748571041422,-441.64398736,0.00021917,2]
[363081245,1748571041434,-420.0,0.00021917,2]
[363081246,1748571041448,-420.0,0.00021917,2]
[363081247,1748571041461,-420.0,0.00021917,2]
[363081248,1748571041476,-1081.93,0.00021917,2]
[363081249,1748571041489,-421.37865065,0.00021917,2]
[363081250,1748571041501,-427.06688108,0.00021917,2]
[363081251,1748571041513,-424.92307444,0.00021917,2]
[363081252,1748571041524,-428.79452474,0.00021917,2]
[363081253,1748571041537,-421.23945991,0.00021917,2]
[363081254,1748571041549,-754.64,0.00021917,2]
[363081255,1748571041561,-420.0,0.00021917,2]
[363081256,1748571041573,-420.0,0.00021917,2]
[363081257,1748571041585,-823.72,0.00021917,2]
[363081258,1748571041597,-420.0,0.00021917,2]
[363081259,1748571041619,-427.59190706,0.00021917,2]
[363081260,1748571041634,-1987.1,0.00021917,2]
[363081261,1748571041650,-425.19303055,0.00021917,2]
[363081262,1748571041667,-422.85725287,0.00021917,2]
[363081263,1748571041682,-420.0,0.00021917,2]
[363081264,1748571041696,-420.0,0.00021917,2]
[363081265,1748571041711,-420.0,0.00021917,2]
[363081266,1748571041725,-552.57,0.00021917,2]
[363081267,1748571041739,-420.0,0.00021917,2]
[363081268,1748571041753,-420.0,0.00021917,2]
[363081269,1748571041767,-420.0,0.00021917,2]
[363081270,1748571041780,-463.79,0.00021917,2]
[363081271,1748571041794,-300.0,0.00021917,2]
[363081272,1748571041807,-420.0,0.00021917,2]
[363081273,1748571041820,-420.0,0.00021917,2]
[363081274,1748571041833,-425.78677633,0.00021917,2]
[363081275,1748571041846,-420.0,0.00021917,2]
[363081276,1748571041859,-420.0,0.00021917,2]
[363081277,1748571041873,-1528.51,0.00021917,2]
[363081278,1748571041886,-424.75532349,0.00021917,2]
[363081279,1748571041900,-422.72667683,0.00021917,2]
[363081280,1748571041913,-1363.32,0.00021917,2]
[363081281,1748571041926,-420.0,0.00021917,2]
[363081282,1748571041941,-421.30119556,0.00021917,2]
[363081283,1748571041953,-683.5,0.00021917,2]
[363081284,1748571041966,-420.0,0.00021917,2]
[363081285,1748571041979,-916.52,0.00021917,2]
[363081286,1748571041992,-424.70903842,0.00021917,2]
[363081287,1748571042008,-456.65,0.00021917,2]
[363081288,1748571042020,-502.42666589,0.00021917,2]
[363081289,1748571042033,-1278.53,0.00021917,2]
[363081290,1748571042045,-521.32,0.00021917,2]
[363081291,1748571042057,-1119.21,0.00021917,2]
[363081292,1748571042070,-500.0,0.00021917,2]
[363081293,1748571042083,-423.67083019,0.00021917,2]
[363081294,1748571042095,-420.0,0.00021917,2]
[363081295,1748571042109,-875.06,0.00021917,2]
[363081296,1748571042122,-456.39,0.00021917,2]
[363081297,1748571042134,-420.0,0.00021917,2]
[363081298,1748571042146,-420.0,0.00021917,2]
[363081299,1748571042159,-420.0,0.00021917,2]
[363081300,1748571042172,-1580.58,0.00021917,2]
[363081301,1748571042185,-425.28462264,0.00021917,2]
[363081302,1748571042197,-1822.79,0.00021917,2]
[363081303,1748571042211,-403.92790651,0.00021917,2]
[363081304,1748571042225,-420.0,0.00021917,2]
[363081305,1748571042238,-420.0,0.00021917,2]
[363081306,1748571042249,-428.21282453,0.00021917,2]
[363081307,1748571042261,-423.40623717,0.00021917,2]
[363081308,1748571042275,-420.0,0.00021917,2]
[363081309,1748571042288,-424.2791139,0.00021917,2]
[363081310,1748571042304,-423.08198555,0.00021917,2]
[363081311,1748571042317,-672.57,0.00021917,2]
[363081312,1748571042329,-424.84859842,0.00021917,2]
[363081313,1748571042344,-420.0,0.00021917,2]
[363081314,1748571042357,-420.0,0.00021917,2]
[363081315,1748571042371,-420.0,0.00021917,2]
[363081316,1748571042383,-680.02,0.00021917,2]
[363081317,1748571042396,-420.0,0.00021917,2]
[363081318,1748571042408,-420.0,0.00021917,2]
[363081319,1748571042421,-421.99258152,0.00021917,2]
[363081320,1748571042433,-425.60013622,0.00021917,2]
[363081321,1748571042445,-598.84,0.00021917,2]
[363081323,1748571042457,-420.0,0.00021917,2]
[363081327,1748571042470,-420.0,0.00021917,2]
[363081331,1748571042486,-421.30100286,0.00021917,2]
[363081334,1748571042500,-1280.74,0.00021917,2]
[363081336,1748571042513,-503.28,0.00021917,2]
[363081341,1748571042526,-484.54,0.00021917,2]
[363081342,1748571042538,-424.71051685,0.00021917,2]
[363081343,1748571042551,-649.5,0.00021917,2]
[363081344,1748571042565,-120.92021363,0.00021917,2]
[363081348,1748571043079,-300.0,0.00021746,2]
[363081349,1748571043091,-301.50192459,0.00021917,2]
[363081350,1748571043104,-420.0,0.00021917,2]
[363081351,1748571043117,-420.0,0.00021917,2]
[363081352,1748571043130,-418.67193508,0.00021917,2]
[363081353,1748571043142,-443.58,0.00021917,2]
[363081354,1748571043156,-420.0,0.00021917,2]
[363081355,1748571043169,-606.77,0.00021917,2]
[363081356,1748571043181,-420.0,0.00021917,2]
[363081357,1748571043195,-422.65834514,0.00021917,2]
[363081358,1748571043208,-420.0,0.00021917,2]
[363081359,1748571043220,-422.31456633,0.00021917,2]
[363081360,1748571043233,-596.33,0.00021917,2]
[363081361,1748571043246,-420.0,0.00021917,2]
[363081362,1748571043259,-420.0,0.00021917,2]
[363081363,1748571043271,-422.84528578,0.00021917,2]
[363081364,1748571043284,-271.66,0.00021917,2]
[363081365,1748571043296,-535.82,0.00021917,2]
[363081366,1748571043312,-551.45,0.00021917,2]
[363081367,1748571043324,-426.87122756,0.00021917,2]
[363081368,1748571043337,-112.81957259,0.00021917,2]
[363081369,1748571044283,-389.56009826,0.00021917,2]
[363081370,1748571044317,-316.63032915,0.00021917,2]
[363081371,1748571044326,-1426.54,0.00021917,2]
[363081372,1748571044336,-420.0,0.00021917,2]
[363081373,1748571044348,-117.84325942,0.00021917,2]
[363081374,1748571044362,-858.12674058,0.00021917,2]
[363081375,1748571044372,-1507.77,0.00021917,2]
[363081376,1748571044383,-420.0,0.00021917,2]
[363081377,1748571044394,-76.11190036,0.00021917,2]
[363081378,1748571044406,-343.88809964,0.00021917,2]
[363081379,1748571044418,-420.0,0.00021917,2]
[363081380,1748571044427,-574.6,0.00021917,2]
[363081381,1748571044438,-420.0,0.00021917,2]
[363081382,1748571044448,-470.33,0.00021917,2]
[363081383,1748571044458,-342.93190036,0.00021917,2]
[363081384,1748571045004,-80.83752137,0.00021917,2]
[363081386,1748571045013,-185.20893762,0.00021917,2]
[363081397,1748571045104,-234.79106238,0.00021917,2]
[363081399,1748571045114,-420.0,0.00021917,2]
[363081401,1748571045123,-420.0,0.00021917,2]
[363081403,1748571045132,-420.0,0.00021917,2]
[363081405,1748571045142,-1231.04,0.00021917,2]
[363081407,1748571045152,-484.93,0.00021917,2]
[363081409,1748571045161,-1304.83409748,0.00021917,2]
[363081411,1748571045173,-561.54590252,0.00021917,2]
[363081413,1748571045182,-422.47545801,0.00021917,2]
[363081415,1748571045192,-420.16,0.00021917,2]
[363081417,1748571045201,-420.0,0.00021917,2]
[363081419,1748571045211,-420.0,0.00021917,2]
[363081421,1748571045220,-423.62405286,0.00021917,2]
[363081423,1748571045230,-500.0,0.00021917,2]
[363081425,1748571045241,-500.0,0.00021917,2]
[363081427,1748571045250,-1236.55,0.00021917,2]
[363081429,1748571045259,-850.11,0.00021917,2]
[363081431,1748571045269,-629.06,0.00021917,2]
[363081433,1748571045278,-599.5,0.00021917,2]
[363081435,1748571045288,-420.0,0.00021917,2]
[363081436,1748571045297,-427.00296382,0.00021917,2]
[363081438,1748571045310,-1613.32,0.00021917,2]
[363081440,1748571045320,-420.0,0.00021917,2]
[363081442,1748571045331,-1184.89,0.00021917,2]
[363081444,1748571045343,-489.36161779,0.00021917,2]
[363081493,1748571045809,-180.43,0.00021299,2]
[363081495,1748571045818,-10.03838221,0.00021917,2]
[363081497,1748571045827,-420.0,0.00021917,2]
[363081499,1748571045837,-420.0,0.00021917,2]
[363081501,1748571045846,-420.0,0.00021917,2]
[363081503,1748571045856,-717.07,0.00021917,2]
[363081505,1748571045865,-505.54656152,0.00021917,2]
[363081507,1748571045874,-420.0,0.00021917,2]
[363081509,1748571045883,-420.0,0.00021917,2]
[363081511,1748571045893,-432.04408255,0.00021917,2]
[363081513,1748571045902,-420.0,0.00021917,2]
[363081515,1748571045912,-420.0,0.00021917,2]
[363081517,1748571045921,-1240.55,0.00021917,2]
[363081519,1748571045931,-280.42211574,0.00021917,2]
[363081521,1748571045940,-420.0,0.00021917,2]
[363081523,1748571045949,-420.0,0.00021917,2]
[363081525,1748571045960,-429.09399873,0.00021917,2]
[363081527,1748571045970,-455.55,0.00021917,2]
[363081529,1748571045980,-420.0,0.00021917,2]
[363081531,1748571045990,-792.05,0.00021917,2]
[363081534,1748571046000,-427.58199187,0.00021917,2]
[363081535,1748571046011,-541.08,0.00021917,2]
[363081537,1748571046020,-420.0,0.00021917,2]
[363081539,1748571046029,-422.12219611,0.00021917,2]
[363081541,1748571046038,-679.75,0.00021917,2]
[363081543,1748571046048,-1276.39,0.00021917,2]
[363081545,1748571046058,-420.0,0.00021917,2]
[363081547,1748571046067,-420.0,0.00021917,2]
[363081549,1748571046076,-420.0,0.00021917,2]
[363081551,1748571046086,-420.0,0.00021917,2]
[363081553,1748571046096,-420.0,0.00021917,2]
[363081556,1748571046106,-740.47,0.00021917,2]
[363081558,1748571046115,-420.0,0.00021917,2]
[363081560,1748571046125,-420.0,0.00021917,2]
[363081562,1748571046135,-427.10845108,0.00021917,2]
[363081564,1748571046145,-420.0,0.00021917,2]
[363081566,1748571046155,-1366.8,0.00021917,2]
[363081568,1748571046165,-420.0,0.00021917,2]
[363081570,1748571046175,-420.0,0.00021917,2]
[363081573,1748571046184,-420.0,0.00021917,2]
[363081575,1748571046194,-427.28636948,0.00021917,2]
[363081577,1748571046204,-420.0,0.00021917,2]
[363081580,1748571046213,-439.09936619,0.00021917,2]
[363081582,1748571046222,-420.0,0.00021917,2]
[363081584,1748571046232,-1005.49,0.00021917,2]
[363081586,1748571046241,-751.61,0.00021917,2]
[363081588,1748571046251,-545.85,0.00021917,2]
[363081590,1748571046260,-420.0,0.00021917,2]
[363081592,1748571046270,-174.18015538,0.00021917,2]
[363081594,1748571046280,-445.58,0.00021917,2]
[363081596,1748571046289,-426.81705226,0.00021917,2]
[363081598,1748571046299,-845.19,0.00021917,2]
[363081600,1748571046313,-426.31514497,0.00021917,2]
[363081602,1748571046323,-425.59023706,0.00021917,2]
[363081604,1748571046333,-420.0,0.00021917,2]
[363081606,1748571046343,-420.0,0.00021917,2]
[363081607,1748571046353,-420.0,0.00021917,2]
[363081608,1748571046363,-799.22,0.00021917,2]
[363081609,1748571046374,-420.0,0.00021917,2]
[363081610,1748571046387,-420.54648217,0.00021917,2]
[363081611,1748571046397,-420.0,0.00021917,2]
[363081612,1748571046408,-420.0,0.00021917,2]
[363081613,1748571046418,-420.0,0.00021917,2]